[Event "Early-Titled-Tuesday-Blitz-September-26-2023"]
[Site "Chess.com"]
[Date "2023.09.26"]
[Round "11"]
[White "rose107"]
[Black "NowInChess"]
[Result "0-1"]
[WhiteElo "2096"]
[BlackElo "2254"]
[TimeControl "180+1"]
[EndTime "10:05:51 PDT"]
[Termination "NowInChess won by resignation"]

1. e4 {[%clk 0:03:00.9]} 1... e6 {[%clk 0:03:00.1]} 2. d4 {[%clk 0:03:00.7]}
2... d5 {[%clk 0:03:01]} 3. e5 {[%clk 0:03:01.2]} 3... c5 {[%clk 0:03:00.8]} 4.
c3 {[%clk 0:03:01.8]} 4... Nc6 {[%clk 0:03:01.4]} 5. Nf3 {[%clk 0:03:02]} 5...
Qb6 {[%clk 0:03:01.8]} 6. Bd3 {[%clk 0:03:01.5]} 6... Nh6 {[%clk 0:03:01.1]} 7.
O-O {[%clk 0:02:57.2]} 7... cxd4 {[%clk 0:03:00.7]} 8. cxd4 {[%clk 0:02:56.9]}
8... Nf5 {[%clk 0:03:00.6]} 9. Bxf5 {[%clk 0:02:56.2]} 9... exf5 {[%clk
0:03:01.5]} 10. Nc3 {[%clk 0:02:55.9]} 10... Be6 {[%clk 0:03:01.9]} 11. Na4
{[%clk 0:02:40.9]} 11... Qc7 {[%clk 0:02:53.4]} 12. Bg5 {[%clk 0:02:35.2]} 12...
h6 {[%clk 0:02:50.8]} 13. Bf4 {[%clk 0:02:32.7]} 13... g5 {[%clk 0:02:48.9]} 14.
Bd2 {[%clk 0:02:31.9]} 14... Be7 {[%clk 0:02:43.8]} 15. Rc1 {[%clk 0:02:30.1]}
15... Rc8 {[%clk 0:02:37.1]} 16. b4 {[%clk 0:02:20.7]} 16... Qd8 {[%clk
0:02:09]} 17. b5 {[%clk 0:02:19.7]} 17... Na5 {[%clk 0:02:04.8]} 18. Rxc8 {[%clk
0:02:17.3]} 18... Bxc8 {[%clk 0:02:05.7]} 19. Bxa5 {[%clk 0:02:14]} 19... Qxa5
{[%clk 0:02:04.1]} 20. Qc2 {[%clk 0:02:13.5]} 20... O-O {[%clk 0:01:51.4]} 21.
Nc5 {[%clk 0:02:09.4]} 21... Qxb5 {[%clk 0:01:46.3]} 22. Rb1 {[%clk 0:02:05.9]}
22... Qc6 {[%clk 0:01:46]} 23. h3 {[%clk 0:01:45]} 23... b6 {[%clk 0:01:43.3]}
24. e6 {[%clk 0:01:41.1]} 24... bxc5 {[%clk 0:01:36.2]} 25. exf7+ {[%clk
0:01:40.1]} 25... Rxf7 {[%clk 0:01:32.2]} 26. Ne5 {[%clk 0:01:39.4]} 26... Qc7
{[%clk 0:01:19.4]} 27. Nxf7 {[%clk 0:01:31.8]} 27... Kxf7 {[%clk 0:01:20.3]} 28.
dxc5 {[%clk 0:01:24.7]} 28... Bd7 {[%clk 0:01:02.6]} 29. Rc1 {[%clk 0:01:13.8]}
29... Bc6 {[%clk 0:01:02.4]} 30. Qxf5+ {[%clk 0:01:13.2]} 30... Ke8 {[%clk
0:00:58]} 31. Qg6+ {[%clk 0:01:12.5]} 31... Kd8 {[%clk 0:00:53.8]} 32. Qg8+
{[%clk 0:01:07.4]} 32... Kd7 {[%clk 0:00:48.8]} 33. Qf7 {[%clk 0:01:03.2]} 33...
Qf4 {[%clk 0:00:47.7]} 34. Qxf4 {[%clk 0:00:56.3]} 34... gxf4 {[%clk 0:00:48.6]}
35. g3 {[%clk 0:00:53.3]} 35... fxg3 {[%clk 0:00:45.3]} 36. fxg3 {[%clk
0:00:54.2]} 36... d4 {[%clk 0:00:42]} 37. Kf2 {[%clk 0:00:43.1]} 37... Bg5
{[%clk 0:00:41.3]} 38. Rd1 {[%clk 0:00:42.5]} 38... Be3+ {[%clk 0:00:40.8]} 39.
Ke2 {[%clk 0:00:42.6]} 39... Bb5+ {[%clk 0:00:37.9]} 40. Ke1 {[%clk 0:00:42.9]}
40... Kc6 {[%clk 0:00:37.4]} 41. g4 {[%clk 0:00:40.3]} 41... Kxc5 {[%clk
0:00:37.4]} 42. Rb1 {[%clk 0:00:38.2]} 42... d3 {[%clk 0:00:35]} 43. h4 {[%clk
0:00:36.2]} 43... d2+ {[%clk 0:00:32.4]} 44. Kd1 {[%clk 0:00:36.5]} 44... Ba4+
{[%clk 0:00:31.9]} 45. Ke2 {[%clk 0:00:37]} 45... d1=Q+ {[%clk 0:00:31.4]} 46.
Rxd1 {[%clk 0:00:37.6]} 46... Bxd1+ {[%clk 0:00:31.9]} 47. Kxd1 {[%clk
0:00:38.5]} 47... Kd4 {[%clk 0:00:27.2]} 48. g5 {[%clk 0:00:37.2]} 48... hxg5
{[%clk 0:00:26.2]} 49. hxg5 {[%clk 0:00:37.6]} 49... Bxg5 {[%clk 0:00:26.6]} 50.
Kc2 {[%clk 0:00:37.8]} 50... Kc4 {[%clk 0:00:26.6]} 51. Kb1 {[%clk 0:00:36.4]}
51... Bf6 {[%clk 0:00:25.9]} 52. a3 {[%clk 0:00:35.8]} 52... Kb3 {[%clk
0:00:25.9]} 53. a4 {[%clk 0:00:36]} 53... Kxa4 {[%clk 0:00:26.2]} 54. Ka2 {[%clk
0:00:36.5]} 54... Kb4 {[%clk 0:00:25.3]} 55. Kb1 {[%clk 0:00:36.7]} 55... Kb3
{[%clk 0:00:24.9]} 56. Kc1 {[%clk 0:00:36.6]} 56... a5 {[%clk 0:00:25.6]} 57.
Kb1 {[%clk 0:00:36.6]} 57... a4 {[%clk 0:00:26.5]} 58. Kc1 {[%clk 0:00:37]}
58... a3 {[%clk 0:00:27.4]} 59. Kd2 {[%clk 0:00:37.5]} 59... a2 {[%clk
0:00:27.8]} 60. Ke2 {[%clk 0:00:38.3]} 60... a1=Q {[%clk 0:00:28.3]} 61. Kd2
{[%clk 0:00:39.2]} 61... Qc3+ {[%clk 0:00:28.5]} 0-1

[Event "Early-Titled-Tuesday-Blitz-September-26-2023"]
[Site "Chess.com"]
[Date "2023.09.26"]
[Round "11"]
[White "Juicy_Fork"]
[Black "BeautiFullMindChess"]
[Result "0-1"]
[WhiteElo "2469"]
[BlackElo "2382"]
[TimeControl "180+1"]
[EndTime "10:05:52 PDT"]
[Termination "BeautiFullMindChess won on time"]

1. e4 {[%clk 0:03:00.9]} 1... c5 {[%clk 0:02:54.9]} 2. Nf3 {[%clk 0:03:01.1]}
2... d6 {[%clk 0:02:53.5]} 3. d4 {[%clk 0:03:01.1]} 3... cxd4 {[%clk 0:02:54.4]}
4. Nxd4 {[%clk 0:03:02]} 4... Nf6 {[%clk 0:02:54.8]} 5. Nc3 {[%clk 0:03:01.9]}
5... a6 {[%clk 0:02:54.8]} 6. Bd3 {[%clk 0:03:01.5]} 6... e5 {[%clk 0:02:53.6]}
7. Nde2 {[%clk 0:03:01.5]} 7... Be7 {[%clk 0:02:53.2]} 8. O-O {[%clk 0:03:01.7]}
8... O-O {[%clk 0:02:53.4]} 9. h3 {[%clk 0:03:01]} 9... b5 {[%clk 0:02:51.4]}
10. Be3 {[%clk 0:03:00.2]} 10... Bb7 {[%clk 0:02:46.3]} 11. f4 {[%clk
0:02:59.3]} 11... exf4 {[%clk 0:02:45]} 12. Nxf4 {[%clk 0:02:58.2]} 12... b4
{[%clk 0:02:43.1]} 13. Ncd5 {[%clk 0:02:57.2]} 13... Nxd5 {[%clk 0:02:43]} 14.
exd5 {[%clk 0:02:57]} 14... Nd7 {[%clk 0:02:42.5]} 15. Bd4 {[%clk 0:02:21.7]}
15... Bf6 {[%clk 0:02:39.7]} 16. Bxf6 {[%clk 0:01:49.4]} 16... Nxf6 {[%clk
0:02:36]} 17. Kh1 {[%clk 0:01:49.4]} 17... g6 {[%clk 0:02:26.1]} 18. Qf3 {[%clk
0:01:42.9]} 18... Nd7 {[%clk 0:02:25.1]} 19. Qg3 {[%clk 0:01:38.8]} 19... Ne5
{[%clk 0:02:22.5]} 20. Rae1 {[%clk 0:01:36.1]} 20... Rc8 {[%clk 0:02:09.2]} 21.
Be4 {[%clk 0:01:16.9]} 21... Rc7 {[%clk 0:01:41.1]} 22. Nh5 {[%clk 0:01:02.7]}
22... f5 {[%clk 0:01:39.9]} 23. Bxf5 {[%clk 0:00:59.6]} 23... Kh8 {[%clk
0:01:32.8]} 24. Rxe5 {[%clk 0:00:56.9]} 24... gxh5 {[%clk 0:01:09.8]} 25. Re6
{[%clk 0:00:53.6]} 25... Rcf7 {[%clk 0:01:09.2]} 26. Qd3 {[%clk 0:00:23.9]}
26... Qg5 {[%clk 0:00:55.7]} 27. Qd4+ {[%clk 0:00:12.7]} 27... Kg8 {[%clk
0:00:55.5]} 28. g4 {[%clk 0:00:11]} 28... hxg4 {[%clk 0:00:51.5]} 29. hxg4
{[%clk 0:00:11]} 29... Qh4+ {[%clk 0:00:34.8]} 30. Kg2 {[%clk 0:00:11]} 30...
Rxf5 {[%clk 0:00:34.7]} 31. Rxf5 {[%clk 0:00:08.9]} 31... Rxf5 {[%clk 0:00:32]}
32. Rxd6 {[%clk 0:00:03.9]} 32... Rf8 {[%clk 0:00:22.5]} 33. Rd7 {[%clk
0:00:03.4]} 33... Rf7 {[%clk 0:00:17.7]} 34. Rxf7 {[%clk 0:00:02]} 34... Kxf7
{[%clk 0:00:18]} 35. Qf4+ {[%clk 0:00:01.9]} 35... Qf6 {[%clk 0:00:14.3]} 36.
Qc7+ {[%clk 0:00:01.7]} 36... Qe7 {[%clk 0:00:14.7]} 37. Qf4+ {[%clk 0:00:01.9]}
37... Kg7 {[%clk 0:00:12.6]} 38. Qd4+ {[%clk 0:00:01.6]} 38... Qf6 {[%clk
0:00:12.4]} 0-1

[Event "Early-Titled-Tuesday-Blitz-September-26-2023"]
[Site "Chess.com"]
[Date "2023.09.26"]
[Round "11"]
[White "Barbix1"]
[Black "LUISMIGUELOV"]
[Result "1-0"]
[WhiteElo "2335"]
[BlackElo "2152"]
[TimeControl "180+1"]
[EndTime "10:05:58 PDT"]
[Termination "Barbix1 won by resignation"]

1. d4 {[%clk 0:03:00.9]} 1... d5 {[%clk 0:02:55.1]} 2. Nf3 {[%clk 0:02:59.9]}
2... c6 {[%clk 0:02:55]} 3. Bf4 {[%clk 0:02:57.2]} 3... Bf5 {[%clk 0:02:54.4]}
4. e3 {[%clk 0:02:57.4]} 4... Nd7 {[%clk 0:02:54.3]} 5. c4 {[%clk 0:02:56.7]}
5... e6 {[%clk 0:02:54]} 6. Nc3 {[%clk 0:02:55]} 6... Be7 {[%clk 0:02:49.3]} 7.
h3 {[%clk 0:02:49.8]} 7... Ngf6 {[%clk 0:02:48.7]} 8. Nh4 {[%clk 0:02:48.6]}
8... Be4 {[%clk 0:02:45.7]} 9. Bd3 {[%clk 0:02:31]} 9... Bxd3 {[%clk 0:02:41.9]}
10. Qxd3 {[%clk 0:02:31.9]} 10... Ne4 {[%clk 0:02:37.8]} 11. Nf3 {[%clk
0:02:29.6]} 11... f5 {[%clk 0:02:36.6]} 12. Ne5 {[%clk 0:02:17.5]} 12... Nxe5
{[%clk 0:02:35]} 13. Bxe5 {[%clk 0:02:17.2]} 13... O-O {[%clk 0:02:35.5]} 14. g4
{[%clk 0:02:12.1]} 14... Bh4 {[%clk 0:02:30]} 15. O-O-O {[%clk 0:01:44.2]} 15...
Nxf2 {[%clk 0:02:27.4]} 16. Qc2 {[%clk 0:01:39.7]} 16... Nxd1 {[%clk 0:02:24.4]}
17. Rxd1 {[%clk 0:01:39.6]} 17... Bg5 {[%clk 0:02:21.8]} 18. Qe2 {[%clk
0:01:31.6]} 18... f4 {[%clk 0:02:21]} 19. exf4 {[%clk 0:01:28.8]} 19... Bxf4+
{[%clk 0:02:20.5]} 20. Bxf4 {[%clk 0:01:29.1]} 20... Rxf4 {[%clk 0:02:20.1]} 21.
Qxe6+ {[%clk 0:01:29.5]} 21... Kh8 {[%clk 0:02:11.9]} 22. cxd5 {[%clk
0:01:29.8]} 22... cxd5 {[%clk 0:02:11.1]} 23. Nxd5 {[%clk 0:01:28.3]} 23... Qc8+
{[%clk 0:02:04.3]} 24. Qxc8+ {[%clk 0:01:19.7]} 24... Rxc8+ {[%clk 0:02:03.9]}
25. Kb1 {[%clk 0:01:12.1]} 25... Rf2 {[%clk 0:02:03.5]} 26. Nc3 {[%clk
0:01:07.5]} 26... g6 {[%clk 0:01:55.9]} 27. d5 {[%clk 0:01:01]} 27... b5 {[%clk
0:01:55.2]} 28. d6 {[%clk 0:00:41.2]} 28... b4 {[%clk 0:01:55]} 29. d7 {[%clk
0:00:41]} 29... Rd8 {[%clk 0:01:55.2]} 30. Ne4 {[%clk 0:00:36.3]} 30... Rf7
{[%clk 0:01:53.6]} 31. Nc5 {[%clk 0:00:36.3]} 31... h5 {[%clk 0:01:40]} 32. Kc2
{[%clk 0:00:35.1]} 32... Kh7 {[%clk 0:01:38.1]} 33. Kb3 {[%clk 0:00:33.8]} 33...
a5 {[%clk 0:01:37.8]} 34. Ka4 {[%clk 0:00:32.4]} 34... Rf2 {[%clk 0:01:24.3]}
35. b3 {[%clk 0:00:22.5]} 35... Rxa2+ {[%clk 0:01:23.3]} 36. Kb5 {[%clk
0:00:22.9]} 36... a4 {[%clk 0:01:14.7]} 37. Nxa4 {[%clk 0:00:19.8]} 37... Rh2
{[%clk 0:01:08.4]} 38. gxh5 {[%clk 0:00:19.2]} 38... gxh5 {[%clk 0:01:07.4]} 39.
Nc5 {[%clk 0:00:19]} 39... Rxh3 {[%clk 0:01:06.1]} 40. Kxb4 {[%clk 0:00:19.2]}
40... h4 {[%clk 0:01:05.1]} 41. Re1 {[%clk 0:00:17.7]} 41... Rb8+ {[%clk
0:01:01.4]} 42. Kc4 {[%clk 0:00:17.2]} 42... Rg3 {[%clk 0:00:56.7]} 43. Re8
{[%clk 0:00:17.3]} 43... Rbxb3 {[%clk 0:00:49.3]} 44. Nxb3 {[%clk 0:00:13.8]}
44... Rg4+ {[%clk 0:00:48.8]} 45. Nd4 {[%clk 0:00:13.5]} 45... h3 {[%clk
0:00:47.1]} 46. d8=Q {[%clk 0:00:13.8]} 46... h2 {[%clk 0:00:47.5]} 47. Rh8+
{[%clk 0:00:13.8]} 47... Kg6 {[%clk 0:00:47.1]} 48. Rxh2 {[%clk 0:00:12.8]}
48... Rg5 {[%clk 0:00:43.4]} 49. Qxg5+ {[%clk 0:00:12.2]} 49... Kxg5 {[%clk
0:00:43]} 50. Rf2 {[%clk 0:00:12.9]} 50... Kg4 {[%clk 0:00:42.8]} 51. Kd5 {[%clk
0:00:12.1]} 51... Kg3 {[%clk 0:00:43.4]} 52. Rf3+ {[%clk 0:00:12.5]} 52... Kg2
{[%clk 0:00:42.3]} 53. Ke4 {[%clk 0:00:12.3]} 53... Kg1 {[%clk 0:00:41.5]} 54.
Kf4 {[%clk 0:00:11.9]} 54... Kg2 {[%clk 0:00:41.7]} 55. Kg4 {[%clk 0:00:12.2]}
55... Kh2 {[%clk 0:00:40.8]} 56. Rg3 {[%clk 0:00:11.8]} 56... Kh1 {[%clk
0:00:40.5]} 57. Kf3 {[%clk 0:00:11.4]} 57... Kh2 {[%clk 0:00:39.7]} 58. Kf2
{[%clk 0:00:11.9]} 1-0

[Event "Early-Titled-Tuesday-Blitz-September-26-2023"]
[Site "Chess.com"]
[Date "2023.09.26"]
[Round "11"]
[White "blitzking1729"]
[Black "jcibarra"]
[Result "1-0"]
[WhiteElo "2788"]
[BlackElo "2938"]
[TimeControl "180+1"]
[EndTime "10:06:09 PDT"]
[Termination "blitzking1729 won by resignation"]

1. c4 {[%clk 0:02:54.7]} 1... e5 {[%clk 0:02:59.6]} 2. Nc3 {[%clk 0:02:51.2]}
2... Nf6 {[%clk 0:02:59.9]} 3. Nf3 {[%clk 0:02:48.3]} 3... d6 {[%clk 0:03:00.5]}
4. d4 {[%clk 0:02:47.2]} 4... e4 {[%clk 0:03:00.8]} 5. Ng5 {[%clk 0:02:46.9]}
5... Qe7 {[%clk 0:03:00.9]} 6. Qc2 {[%clk 0:02:41.7]} 6... Bf5 {[%clk 0:03:01]}
7. g3 {[%clk 0:02:41.3]} 7... h6 {[%clk 0:03:00.5]} 8. Nh3 {[%clk 0:02:41.5]}
8... c6 {[%clk 0:03:00.1]} 9. Bg2 {[%clk 0:02:39.3]} 9... g6 {[%clk 0:02:55.6]}
10. Qd1 {[%clk 0:02:30.8]} 10... Bg7 {[%clk 0:02:54.2]} 11. e3 {[%clk
0:02:26.7]} 11... Qe6 {[%clk 0:02:46.4]} 12. Nf4 {[%clk 0:02:23.7]} 12... Qxc4
{[%clk 0:02:45]} 13. a3 {[%clk 0:02:14.2]} 13... Qa6 {[%clk 0:02:39.2]} 14. h3
{[%clk 0:02:11.2]} 14... h5 {[%clk 0:02:37.6]} 15. Bf1 {[%clk 0:01:59.6]} 15...
Qb6 {[%clk 0:02:35]} 16. h4 {[%clk 0:01:59.7]} 16... d5 {[%clk 0:02:31]} 17. b3
{[%clk 0:01:56.5]} 17... O-O {[%clk 0:02:30.3]} 18. Be2 {[%clk 0:01:55.2]} 18...
Nbd7 {[%clk 0:02:27.2]} 19. O-O {[%clk 0:01:54.3]} 19... Qd8 {[%clk 0:02:26.3]}
20. a4 {[%clk 0:01:54.4]} 20... a5 {[%clk 0:02:24.5]} 21. Ba3 {[%clk 0:01:54.1]}
21... Re8 {[%clk 0:02:25.2]} 22. Rb1 {[%clk 0:01:54.1]} 22... Ng4 {[%clk
0:02:10.5]} 23. b4 {[%clk 0:01:33.1]} 23... Bf8 {[%clk 0:02:10.2]} 24. Qb3
{[%clk 0:01:31.3]} 24... Qe7 {[%clk 0:02:07.8]} 25. Rfc1 {[%clk 0:01:24]} 25...
Ndf6 {[%clk 0:02:03.9]} 26. Na2 {[%clk 0:01:14.7]} 26... Ra7 {[%clk 0:01:40.4]}
27. Rc3 {[%clk 0:01:11.7]} 27... axb4 {[%clk 0:01:31.8]} 28. Bxb4 {[%clk
0:01:05.6]} 28... Qd7 {[%clk 0:01:32]} 29. Bxf8 {[%clk 0:00:55.6]} 29... Rxf8
{[%clk 0:01:32.9]} 30. Rc2 {[%clk 0:00:55.6]} 30... Rfa8 {[%clk 0:01:31.6]} 31.
Nc3 {[%clk 0:00:55.7]} 31... Qd8 {[%clk 0:01:28.4]} 32. Rcb2 {[%clk 0:00:32.6]}
32... Bc8 {[%clk 0:01:27.2]} 33. Qb4 {[%clk 0:00:24.3]} 33... Kg7 {[%clk
0:01:26.4]} 34. Qc5 {[%clk 0:00:24.5]} 34... Ra5 {[%clk 0:01:23.8]} 35. Qb6
{[%clk 0:00:23]} 35... Qe7 {[%clk 0:01:21.8]} 36. Qb4 {[%clk 0:00:22.4]} 36...
Qd8 {[%clk 0:01:13.6]} 37. Qb6 {[%clk 0:00:21.3]} 37... Qf8 {[%clk 0:01:01.9]}
38. Qxb7 {[%clk 0:00:16.9]} 38... Bxb7 {[%clk 0:01:00.7]} 39. Rxb7 {[%clk
0:00:16.5]} 39... R5a7 {[%clk 0:00:58.9]} 40. Ne6+ {[%clk 0:00:16.4]} 40... Kg8
{[%clk 0:00:54.4]} 41. Nxf8 {[%clk 0:00:15.6]} 41... Kxf8 {[%clk 0:00:54.6]} 42.
Rxa7 {[%clk 0:00:15.3]} 42... Rxa7 {[%clk 0:00:54.6]} 43. Rb6 {[%clk 0:00:15.8]}
43... Ke7 {[%clk 0:00:40.5]} 44. Rxc6 {[%clk 0:00:15.5]} 44... Nh6 {[%clk
0:00:35.6]} 45. Ba6 {[%clk 0:00:09.5]} 45... Nf5 {[%clk 0:00:34.3]} 46. Nb5
{[%clk 0:00:09.5]} 46... Ra8 {[%clk 0:00:32.1]} 47. Rc7+ {[%clk 0:00:09.7]}
47... Ke6 {[%clk 0:00:27.9]} 48. Bc8+ {[%clk 0:00:06.2]} 1-0

[Event "Early-Titled-Tuesday-Blitz-September-26-2023"]
[Site "Chess.com"]
[Date "2023.09.26"]
[Round "11"]
[White "Iskusnyh"]
[Black "Crazy_girl99"]
[Result "1/2-1/2"]
[WhiteElo "2618"]
[BlackElo "2721"]
[TimeControl "180+1"]
[EndTime "10:06:09 PDT"]
[Termination "Game drawn - insufficient material"]

1. d4 {[%clk 0:02:33.8]} 1... Nf6 {[%clk 0:02:59.3]} 2. c4 {[%clk 0:02:33.3]}
2... e6 {[%clk 0:02:59.8]} 3. g3 {[%clk 0:02:33.5]} 3... d5 {[%clk 0:02:59.5]}
4. Bg2 {[%clk 0:02:33.9]} 4... Be7 {[%clk 0:02:59.5]} 5. Nf3 {[%clk 0:02:34.1]}
5... O-O {[%clk 0:03:00.2]} 6. O-O {[%clk 0:02:34.5]} 6... dxc4 {[%clk
0:03:00.9]} 7. Na3 {[%clk 0:02:34]} 7... Bxa3 {[%clk 0:02:56.8]} 8. bxa3 {[%clk
0:02:32.5]} 8... Bd7 {[%clk 0:02:57.5]} 9. Ne5 {[%clk 0:02:30]} 9... Bc6 {[%clk
0:02:56.6]} 10. Nxc6 {[%clk 0:02:27.9]} 10... Nxc6 {[%clk 0:02:56.3]} 11. Bb2
{[%clk 0:02:28.3]} 11... Nd5 {[%clk 0:02:51]} 12. Rc1 {[%clk 0:02:26.2]} 12...
Nb6 {[%clk 0:02:51.1]} 13. e4 {[%clk 0:02:15.5]} 13... Qd6 {[%clk 0:02:41.4]}
14. d5 {[%clk 0:02:06.4]} 14... exd5 {[%clk 0:02:37.2]} 15. exd5 {[%clk
0:02:07.3]} 15... Ne5 {[%clk 0:02:27.7]} 16. Bc3 {[%clk 0:01:56.9]} 16... Nd3
{[%clk 0:02:25.3]} 17. Rc2 {[%clk 0:01:53.4]} 17... Nxd5 {[%clk 0:02:21.2]} 18.
Ba1 {[%clk 0:01:51.4]} 18... b5 {[%clk 0:02:14.9]} 19. Qg4 {[%clk 0:01:49.8]}
19... f6 {[%clk 0:02:05.7]} 20. a4 {[%clk 0:01:48.6]} 20... a6 {[%clk
0:02:03.4]} 21. Be4 {[%clk 0:01:46.1]} 21... Rae8 {[%clk 0:01:57.3]} 22. axb5
{[%clk 0:01:40.2]} 22... axb5 {[%clk 0:01:55.9]} 23. a4 {[%clk 0:01:40.4]} 23...
c6 {[%clk 0:01:45.4]} 24. Rb1 {[%clk 0:01:39.3]} 24... N5b4 {[%clk 0:01:39.7]}
25. Rd2 {[%clk 0:01:33.6]} 25... Qc5 {[%clk 0:01:28.6]} 26. axb5 {[%clk
0:01:25.5]} 26... cxb5 {[%clk 0:01:28.1]} 27. Bc3 {[%clk 0:01:25]} 27... Nd5
{[%clk 0:01:23.1]} 28. Ba1 {[%clk 0:01:18.7]} 28... b4 {[%clk 0:00:50.5]} 29.
Bxd3 {[%clk 0:01:14.7]} 29... cxd3 {[%clk 0:00:48.1]} 30. Rxd3 {[%clk
0:01:14.7]} 30... Kh8 {[%clk 0:00:37]} 31. h4 {[%clk 0:01:12.8]} 31... Qc6
{[%clk 0:00:33.5]} 32. Qf3 {[%clk 0:01:12.1]} 32... Ne7 {[%clk 0:00:30.7]} 33.
Qf4 {[%clk 0:01:05.7]} 33... Rb8 {[%clk 0:00:24.8]} 34. h5 {[%clk 0:01:04.9]}
34... h6 {[%clk 0:00:23.4]} 35. Rd6 {[%clk 0:01:04.4]} 35... Qc2 {[%clk
0:00:21.2]} 36. Re1 {[%clk 0:01:02.5]} 36... Nf5 {[%clk 0:00:17.5]} 37. Rd7
{[%clk 0:00:58.6]} 37... Rbe8 {[%clk 0:00:11.7]} 38. Rc1 {[%clk 0:00:57.5]}
38... Qe4 {[%clk 0:00:09.9]} 39. Qxe4 {[%clk 0:00:57.2]} 39... Rxe4 {[%clk
0:00:10.8]} 40. Rb7 {[%clk 0:00:57.4]} 40... Nd6 {[%clk 0:00:09.7]} 41. Rb6
{[%clk 0:00:56.6]} 41... Nf5 {[%clk 0:00:09.7]} 42. Bb2 {[%clk 0:00:55.4]} 42...
Nd4 {[%clk 0:00:09]} 43. Kg2 {[%clk 0:00:53.7]} 43... Ne2 {[%clk 0:00:08.7]} 44.
Rc7 {[%clk 0:00:53]} 44... Nc3 {[%clk 0:00:05.9]} 45. Rbb7 {[%clk 0:00:52.9]}
45... Rg8 {[%clk 0:00:06.2]} 46. Bxc3 {[%clk 0:00:50.6]} 46... bxc3 {[%clk
0:00:07.1]} 47. Rxc3 {[%clk 0:00:50.8]} 47... Re5 {[%clk 0:00:07.7]} 48. g4
{[%clk 0:00:50.6]} 48... f5 {[%clk 0:00:08.2]} 49. f3 {[%clk 0:00:45.3]} 49...
fxg4 {[%clk 0:00:08.3]} 50. fxg4 {[%clk 0:00:45.9]} 50... Rg5 {[%clk 0:00:08.9]}
51. Kh3 {[%clk 0:00:45.9]} 51... Rf8 {[%clk 0:00:09.5]} 52. Re3 {[%clk
0:00:45.1]} 52... Kg8 {[%clk 0:00:09.8]} 53. Rbe7 {[%clk 0:00:44.8]} 53... Rf7
{[%clk 0:00:09.9]} 54. R7e5 {[%clk 0:00:44.6]} 54... Rxe5 {[%clk 0:00:09.2]} 55.
Rxe5 {[%clk 0:00:45.5]} 55... Rf3+ {[%clk 0:00:08.4]} 56. Kh4 {[%clk 0:00:45.8]}
56... Ra3 {[%clk 0:00:08.9]} 57. Re4 {[%clk 0:00:45.4]} 57... Kf7 {[%clk
0:00:08.6]} 58. Rb4 {[%clk 0:00:43.9]} 58... Kf6 {[%clk 0:00:08.8]} 59. Rb6+
{[%clk 0:00:43.4]} 59... Kf7 {[%clk 0:00:09]} 60. Rc6 {[%clk 0:00:43.8]} 60...
Rb3 {[%clk 0:00:08.4]} 61. Rc4 {[%clk 0:00:43.8]} 61... Ra3 {[%clk 0:00:08.9]}
62. g5 {[%clk 0:00:43.7]} 62... hxg5+ {[%clk 0:00:08.7]} 63. Kxg5 {[%clk
0:00:44.1]} 63... Ra5+ {[%clk 0:00:09.4]} 64. Kg4 {[%clk 0:00:43.9]} 64... Kg8
{[%clk 0:00:10.1]} 65. Rf4 {[%clk 0:00:43.1]} 65... Kh7 {[%clk 0:00:10.8]} 66.
Rf5 {[%clk 0:00:43.1]} 66... Rxf5 {[%clk 0:00:10.4]} 67. Kxf5 {[%clk 0:00:44]}
67... Kh6 {[%clk 0:00:10.7]} 68. Kg4 {[%clk 0:00:44.4]} 68... g6 {[%clk
0:00:11.1]} 69. hxg6 {[%clk 0:00:45.3]} 69... Kxg6 {[%clk 0:00:11.9]} 1/2-1/2

[Event "Early-Titled-Tuesday-Blitz-September-26-2023"]
[Site "Chess.com"]
[Date "2023.09.26"]
[Round "11"]
[White "MidnightFox"]
[Black "luizzy"]
[Result "1-0"]
[WhiteElo "2506"]
[BlackElo "2621"]
[TimeControl "180+1"]
[EndTime "10:06:10 PDT"]
[Termination "MidnightFox won by checkmate"]

1. d4 {[%clk 0:03:00.9]} 1... d6 {[%clk 0:02:59.4]} 2. c4 {[%clk 0:03:01.3]}
2... e5 {[%clk 0:02:59.6]} 3. Nf3 {[%clk 0:02:54.5]} 3... e4 {[%clk 0:02:59.9]}
4. Nfd2 {[%clk 0:02:52.3]} 4... f5 {[%clk 0:03:00.5]} 5. e3 {[%clk 0:02:50.4]}
5... Nf6 {[%clk 0:03:01]} 6. Nc3 {[%clk 0:02:50.6]} 6... g6 {[%clk 0:03:01.2]}
7. b3 {[%clk 0:02:50.4]} 7... Bg7 {[%clk 0:03:01.7]} 8. Bb2 {[%clk 0:02:50.9]}
8... O-O {[%clk 0:03:02.5]} 9. Qc2 {[%clk 0:02:50]} 9... c5 {[%clk 0:03:02.8]}
10. d5 {[%clk 0:02:49.2]} 10... Nbd7 {[%clk 0:02:57.6]} 11. Be2 {[%clk
0:02:49.2]} 11... Ne5 {[%clk 0:02:57.2]} 12. h3 {[%clk 0:02:48.7]} 12... Bd7
{[%clk 0:02:54.2]} 13. O-O-O {[%clk 0:02:43.8]} 13... b5 {[%clk 0:02:52.1]} 14.
cxb5 {[%clk 0:02:41.9]} 14... Qa5 {[%clk 0:02:43.3]} 15. Nc4 {[%clk 0:02:36]}
15... Nxc4 {[%clk 0:02:43]} 16. bxc4 {[%clk 0:02:36.9]} 16... a6 {[%clk
0:02:42.7]} 17. b6 {[%clk 0:01:42.6]} 17... Qxb6 {[%clk 0:02:40.7]} 18. Kd2
{[%clk 0:01:42.3]} 18... Rab8 {[%clk 0:02:32.5]} 19. Rb1 {[%clk 0:01:42.3]}
19... Qa5 {[%clk 0:02:31.9]} 20. Ba1 {[%clk 0:01:38.8]} 20... f4 {[%clk
0:01:57.6]} 21. exf4 {[%clk 0:01:34.9]} 21... Bf5 {[%clk 0:01:53.5]} 22. Rxb8
{[%clk 0:01:26.2]} 22... e3+ {[%clk 0:01:52.7]} 23. fxe3 {[%clk 0:01:19.8]}
23... Bxc2 {[%clk 0:01:19]} 24. Rxf8+ {[%clk 0:01:19.4]} 24... Kxf8 {[%clk
0:01:19.9]} 25. Kxc2 {[%clk 0:01:20]} 25... Ne4 {[%clk 0:01:19.3]} 26. Nxe4
{[%clk 0:00:43.4]} 26... Qxa2+ {[%clk 0:01:19.2]} 27. Kd3 {[%clk 0:00:41.9]}
27... Bxa1 {[%clk 0:01:19]} 28. Nxd6 {[%clk 0:00:34.6]} 28... Ke7 {[%clk
0:01:18.9]} 29. Ne4 {[%clk 0:00:25.7]} 29... Qb3+ {[%clk 0:01:14.9]} 30. Kd2
{[%clk 0:00:26]} 30... Qb2+ {[%clk 0:01:15.1]} 31. Kd3 {[%clk 0:00:25.6]} 31...
Qa3+ {[%clk 0:00:57.7]} 32. Kd2 {[%clk 0:00:25.5]} 32... Qa2+ {[%clk 0:00:57]}
33. Kd3 {[%clk 0:00:25.7]} 33... a5 {[%clk 0:00:57.7]} 34. d6+ {[%clk
0:00:23.8]} 34... Kd8 {[%clk 0:00:50.7]} 35. Rd1 {[%clk 0:00:19.8]} 35... a4
{[%clk 0:00:36.6]} 36. Bf3 {[%clk 0:00:13.8]} 36... Qb3+ {[%clk 0:00:32.3]} 37.
Ke2 {[%clk 0:00:10.1]} 37... Qxc4+ {[%clk 0:00:31.5]} 38. Kf2 {[%clk 0:00:10.4]}
38... Bb2 {[%clk 0:00:23.4]} 39. d7 {[%clk 0:00:09.8]} 39... a3 {[%clk
0:00:22.6]} 40. Kg3 {[%clk 0:00:05]} 40... Qc2 {[%clk 0:00:18.5]} 41. Ng5 {[%clk
0:00:04.1]} 41... Qxd1 {[%clk 0:00:17.6]} 42. Bxd1 {[%clk 0:00:03.8]} 42... a2
{[%clk 0:00:18.5]} 43. Ba4 {[%clk 0:00:02.4]} 43... Ke7 {[%clk 0:00:09.8]} 44.
Ne6 {[%clk 0:00:03.3]} 44... Kxe6 {[%clk 0:00:08.1]} 45. d8=Q {[%clk 0:00:04.2]}
45... a1=Q {[%clk 0:00:09]} 46. Bb3+ {[%clk 0:00:04.5]} 46... Kf5 {[%clk
0:00:08.7]} 47. Qd5+ {[%clk 0:00:04.8]} 47... Kf6 {[%clk 0:00:09]} 48. Qf7#
{[%clk 0:00:05.2]} 1-0